Cogmind - Beta 10.2 @@@ ROGUE MODE // 2021.12.01 @ 17:29:54 Player: Azken Zutik Result: Destroyed by S-43 Plague with Heavy Machine Gun Performance ------------- Evolutions (9) 4500 Regions Visited (31) 6200 Robots Destroyed (419) 2095 Value Destroyed (23056) 23056 Prototype IDs (60) 1200 Alien Tech Used (0) 0 Bonus (25245) 25245 TOTAL SCORE: 62296 Bonus ------- High Alert Combat Kills 5104 Follower Combat Kills 1979 Entered Garrisons 2200 Used RIF Installer 5500 Aligned with FarCom 300 Destroyed MAIN.C Guards 500 Met MAIN.C 5000 Destroyed MAIN.C Shell 5000 Friendly Fire -338 Cogmind --------- Core Integrity 0/1600 Matter 300/300 Energy 25/100 System Corruption 49% Temperature Cool (2) Movement Flying (40) Location -1/Command Parts ------- > --- POWER (2) -------- (None) > --- PROPULSION (4) --- Xenon Bombardment Thruster > --- UTILITY (15) ----- (None) > --- WEAPON (4) ------- (None) > --- INVENTORY (4) ---- Quantum Reactor Zero-point Reactor Recalibrator Gamma Rifle Peak State ------------ > --- POWER ------------ Particle Reactor Light Quantum Reactor > --- PROPULSION ------- Biometal Heavy Treads Biometal Heavy Treads > --- UTILITY ---------- Improved Heat Sink Large Storage Unit Large Storage Unit Large Storage Unit Large Storage Unit Large Storage Unit Large Storage Unit Large Storage Unit High-capacity Storage Unit Advanced Phase Shifter Layered Light Armor Plating Damper Plating Improved Remote Force Field > --- WEAPON ----------- Railgun Railgun Railgun Force Lance > --- INVENTORY -------- Particle Reactor Advanced Heavy Treads Advanced Heavy Treads Advanced Heat Sink Advanced Heat Sink Advanced Heat Sink Energy Well High-capacity Matter Pod Compact Matter Pod Matter Compressor Matter Compressor Advanced Launcher Guidance Computer Advanced Target Analyzer Matter Filter Improved Medium Armor Plating Damper Plating Improved Shock Absorption System Improved Shock Absorption System Improved Remote Force Field Improved Remote Force Field Relay Coupler [Swarmer] Component Analysis Suite Improved Trap Extractor Recalibrator Improved Field Recycling Unit Quantum Rifle Heavy Battle Rifle Heavy Battle Rifle Coil Gun Coil Gun Coil Gun Coil Gun Coil Gun Coil Gun Coil Gun KE Penetrator KE Penetrator KE Penetrator KE Penetrator KE Penetrator KE Penetrator KE Penetrator KE Penetrator Micro-nuke Launcher Micro-nuke Launcher Micro-nuke Launcher Improved Datajack Advanced Remote Datajack Advanced Remote Datajack Segregator [Rating: 161] Favorites ----------- Power F-cell Engine Engine F-cell Engine Reactor Particle Reactor Propulsion Armored Wheel Treads Heavy Treads Wheel Armored Wheel Flight Unit Xenon Bombardment Thruster Utility Large Storage Unit Device Improved Heat Sink Storage Large Storage Unit Processor Advanced Target Analyzer Hackware Relay Coupler [NC] Protection Improved Heavy Armor Plating Weapon Railgun Energy Gun Heavy EM Shotgun Energy Cannon Improved EM Pulse Cannon Ballistic Gun Railgun Launcher Advanced EMP Blaster Special Weapon Remote Datajack Slashing Weapon Chainsword Piercing Weapon Force Lance Special Melee Weapon Improved Datajack Build | -11 -10 -10 -10 -9 -8 -8 -8 -7 -7 -7 -7 -6 -6 -6 -6 -6 -6 -5 -5 -4 -4 -3 -3 -3 -3 -2 -2 -2 -2 -1 -1 ------- Run | Scr Mat Min Exi Min Mat Sto Gar Fac Gar Fac Gar Fac Was Fac Gar Fac Gar Fac Gar Fac Gar Res Gar Res Gar Res Gar Res Gar Acc Com Slots Evolved 18 | . . . . . 4 . . 2 . . . 2 . . . . . 2 . 2 . 2 . . . 2 . . . 2 . Power 1 | . . . . . . . . . . . . . . . . . . . . . . 1 . . . . . . . . . Propulsion 2 | . . . . . . . . . . . . . . . . . . 1 . 1 . . . . . . . . . . . Utility 13 | . . . . . 2 . . 2 . . . 2 . . . . . 1 . 1 . 1 . . . 2 . . . 2 . Weapon 2 | . . . . . 2 . . . . . . . . . . . . . . . . . . . . . . . . . . Parts Attached 570 | 8 19 1 1 1 6 24 20 11 20 8 31 4 10 2 30 4 20 16 24 4 29 9 44 15 27 18 30 6 25 34 69 Power 22 | 1 3 . 1 . . 2 . . . 1 1 . 1 . . . . . . . 1 . 1 . . 2 2 . 1 2 3 Engine 13 | 1 3 . 1 . . 2 . . . 1 1 . 1 . . . . . . . 1 . 1 . . . 1 . . . . Core . | . . . . . . . . . . . . . . . . . . . . . . . . . . . . . . . . Reactor 9 | . . . . . . . . . . . . . . . . . . . . . . . . . . 2 1 . 1 2 3 Propulsion 63 | 2 6 . . . . 1 2 . 3 1 1 . 1 . 3 . 3 7 4 1 6 2 5 2 . 2 . . . 5 6 Treads 32 | 2 6 . . . . 1 . . . . . . . . 1 . 1 2 1 . 2 . 2 2 . 2 . . . 5 5 Leg . | . . . . . . . . . . . . . . . . . . . . . . . . . . . . . . . . Wheel 30 | . . . . . . . 2 . 3 1 1 . 1 . 2 . 2 5 3 1 4 2 3 . . . . . . . . Hover . | . . . . . . . . . . . . . . . . . . . . . . . . . . . . . . . . Flight 1 | . . . . . . . . . . . . . . . . . . . . . . . . . . . . . . . 1 Utility 272 | 2 2 . . 1 3 . 7 5 12 . 14 3 3 . 21 . 13 3 15 2 18 2 29 4 20 8 15 3 18 14 35 Device 77 | . . . . . . . 2 2 4 . 2 . 1 . 5 . 3 1 3 1 3 1 11 . 7 1 5 1 5 2 17 Storage 102 | 2 2 . . 1 2 . 3 1 5 . 5 . 2 . 11 . 7 1 9 . 10 . 10 . 8 . 6 . 9 4 4 Processor 5 | . . . . . . . . . 1 . . . . . . . . . . . . . . . . . . . . 1 3 Hackware 12 | . . . . . . . . . . . . 1 . . . . . 1 . 1 . 1 . 3 . 2 . 1 . 1 1 Protection 76 | . . . . . 1 . 2 2 2 . 7 2 . . 5 . 3 . 3 . 5 . 8 1 5 5 4 1 4 6 10 Artifact . | . . . . . . . . . . . . . . . . . . . . . . . . . . . . . . . . Weapon 213 | 3 8 1 . . 3 21 11 6 5 6 15 1 5 2 6 4 4 6 5 1 4 5 9 9 7 6 13 3 6 13 25 Energy Gun 9 | 1 . . . . . 7 . . . . . . . . . . . . . . . . . . . . . . . . 1 Energy Cannon 1 | . . . . . . . . . 1 . . . . . . . . . . . . . . . . . . . . . . Ballistic Gun 123 | 2 8 . . . 3 7 5 3 1 3 10 . 3 1 3 4 2 3 3 . 3 2 5 4 4 5 7 2 3 11 16 Ballistic Cannon . | . . . . . . . . . . . . . . . . . . . . . . . . . . . . . . . . Launcher 32 | . . 1 . . . 3 4 1 2 . 1 . . . . . 1 . 2 . 1 . 4 1 2 . 4 . 2 . 3 Special Weapon 18 | . . . . . . 3 . . . 1 . 1 1 . . . 1 1 . 1 . 2 . 2 . 1 . 1 . 1 2 Impact Weapon . | . . . . . . . . . . . . . . . . . . . . . . . . . . . . . . . . Slashing Weapon 18 | . . . . . . 1 2 2 1 2 4 . 1 1 . . . 2 . . . 1 . . . . . . . . 1 Piercing Weapon 9 | . . . . . . . . . . . . . . . . . . . . . . . . 2 1 . 2 . 1 1 2 Special Melee Weapon 3 | . . . . . . . . . . . . . . . 3 . . . . . . . . . . . . . . . . Unidentified Prototypes 13 | . . . . . . 8 . . . . . . . . . . . . . . . . . . . . . . . . 5 Parts Lost 83 | . . . . . . 1 . . 2 . 6 . 2 . . . . . . . . . 1 . 1 6 3 . 1 17 43 Power 6 | . . . . . . . . . . . 1 . . . . . . . . . . . . . . 1 . . . 2 2 Propulsion 13 | . . . . . . 1 . . 1 . . . 1 . . . . . . . . . . . . 1 . . . 2 7 Utility 38 | . . . . . . . . . 1 . 4 . . . . . . . . . . . . . 1 1 3 . 1 7 20 Weapon 26 | . . . . . . . . . . . 1 . 1 . . . . . . . . . 1 . . 3 . . . 6 14 Highest Loss Streak 18 | . . . . . . 1 . . 1 . 3 . 2 . . . . . . . . . 1 . 1 4 3 . 1 16 18 Average Slot Usage (%) 90 | . 99 100 100 100 100 99 99 99 99 99 98 93 99 100 82 100 83 98 80 100 81 90 82 91 87 87 83 84 85 84 82 Engine 6 | . 13 14 14 14 9 9 9 7 7 6 6 6 5 6 6 6 6 5 5 5 5 4 8 9 9 6 3 . . . . Treads 6 | . 27 28 28 28 18 17 5 . . . . . . . 4 . 5 . 4 . 8 . 7 6 9 8 8 8 8 8 7 Wheel 5 | . . . . . . . 12 15 14 15 15 13 12 13 3 13 2 15 2 21 4 14 1 3 . . . . . . . Device 8 | . . . . . . . 13 6 11 . 5 . 1 . 6 . 10 2 8 1 10 . 13 4 15 7 15 3 17 10 11 Storage 23 | . 28 28 28 28 29 27 10 30 17 46 25 40 45 53 19 53 15 48 19 47 15 47 15 42 22 39 22 34 25 34 28 Protection 10 | . . . . . 6 9 12 6 13 . 13 6 2 . 13 . 15 . 13 . 15 . 16 2 10 4 11 8 8 6 3 Energy Gun 1 | . . . . . . 15 . . . . . . . . . . . . . . . . . . . . . . . . . Ballistic Gun 20 | . 27 14 14 14 36 7 27 26 16 22 29 25 25 25 25 26 25 20 22 16 20 15 16 13 18 15 12 13 14 12 13 Launcher 1 | . . 14 14 14 . 6 3 . 1 . . . . . . . . . . . . . 1 . . . 2 . 2 . . Slashing Weapon 1 | . . . . . . 4 4 2 6 5 . . . . . . . 1 . . . . . . . . . . . . . Naked Turns 6 | . . . . . . . . . . . . . . . . . . . . . . . . . . . . . . . 6 Heaviest Build 278 | 15 45 44 44 60 93 99 107 124 140 140 142 157 174 174 174 180 180 212 212 224 216 228 247 247 239 276 258 251 230 278 278 Greatest Support 150 | 40 46 46 46 46 46 46 46 24 24 24 24 24 24 24 70 24 70 36 70 48 140 52 140 140 140 145 135 135 135 150 138 Greatest Overweight (x) 18 | . 10 . . 1 2 2 5 5 5 5 5 6 11 7 7 7 7 8 7 4 17 4 18 8 1 2 1 1 1 2 6 Average Overweight (x) 2 | . . . . . 1 1 1 4 2 5 3 5 6 7 2 7 2 5 1 4 . 3 2 2 . 1 . 1 . 1 1 Largest Inventory Capacity 62 | 8 16 16 16 18 30 24 30 36 42 42 42 42 54 54 54 54 54 62 62 62 62 62 62 62 62 62 62 54 54 54 54 Average Capacity 27 | 7 11 16 16 16 25 24 11 30 18 42 24 42 46 54 21 54 18 57 25 62 22 62 23 62 34 62 37 54 29 54 39 Most Carried 62 | 8 16 16 16 17 17 24 30 36 42 42 42 41 54 54 54 54 54 56 62 61 62 62 62 62 62 62 57 54 54 54 50 Average Carried 24 | 5 10 16 15 16 16 23 10 30 17 41 23 40 43 53 19 53 17 53 22 60 18 61 18 60 27 58 33 53 27 51 31 Final Capacity 62 | 8 16 16 16 18 24 24 30 36 42 42 42 42 54 54 54 54 54 56 62 62 62 62 62 62 62 62 54 54 54 54 4 Final Carried 62 | 8 16 16 16 17 17 24 30 36 42 42 42 41 54 54 54 54 54 54 62 60 62 62 62 60 62 53 51 54 54 49 4 Class Distribution -------------------- 18% | Hauler-Mutant 13% | Mutant 13% | Hauler-Skirmisher 11% | Scavenger-Tank 10% | Scavenger-Mutant 7% | Tank 6% | Scavenger-Assassin 5% | Machinist-Tank 4% | Machinist-Mutant Dominant Class ---------------- Mutant | -10/Materials Mutant | -10/Mines Mutant | -10/Exiles Mutant | -9/Mines Hauler-Skirmisher | -8/Materials Hauler-Mutant | -8/Storage Scavenger-Assassin | -8/Garrison Hauler-Mutant | -7/Factory Scavenger-Assassin | -7/Garrison Hauler-Mutant | -7/Factory Tank | -7/Garrison Hauler-Mutant | -6/Factory Hauler-Mutant | -6/Waste Hauler-Skirmisher | -6/Factory Tank | -6/Garrison Hauler-Skirmisher | -6/Factory Machinist-Tank | -6/Garrison Hauler-Skirmisher | -5/Factory Machinist-Mutant | -5/Garrison Hauler-Mutant | -4/Factory Scavenger-Tank | -4/Garrison Hauler-Mutant | -3/Research Scavenger-Tank | -3/Garrison Botlord-Mutant | -3/Research Scavenger-Tank | -3/Garrison Botlord-Mutant | -2/Research Scavenger-Mutant | -2/Garrison Hauler-Mutant | -2/Research Scavenger-Mutant | -2/Garrison Scavenger-Mutant | -1/Access Scavenger-Mutant | -1/Command Resources | -11 -10 -10 -10 -9 -8 -8 -8 -7 -7 -7 -7 -6 -6 -6 -6 -6 -6 -5 -5 -4 -4 -3 -3 -3 -3 -2 -2 -2 -2 -1 -1 ----------- Run | Scr Mat Min Exi Min Mat Sto Gar Fac Gar Fac Gar Fac Was Fac Gar Fac Gar Fac Gar Fac Gar Res Gar Res Gar Res Gar Res Gar Acc Com Matter Collected 24172 | 413 621 19 . 154 180 365 543 186 589 432 1179 33 404 106 1657 . 1287 477 1354 . 1291 . 2648 506 1854 602 1372 89 1654 1369 2788 Remotely . | . . . . . . . . . . . . . . . . . . . . . . . . . . . . . . . . Salvage Created 23473 | 325 542 19 . . 425 926 1421 199 1473 322 1005 33 435 210 1964 . 1114 277 766 . 1010 . 1099 280 1283 832 1374 89 1405 2117 2528 Parts 1042 | 33 34 5 . . 14 46 64 13 66 12 47 4 3 11 71 . 70 13 37 . 46 . 31 13 49 36 47 7 53 118 99 Haulers Intercepted 8 | . 2 . . . 1 3 . 1 . 1 . . . . . . . . . . . . . . . . . . . . . Recyclers Shooed 3 | . . . . . . . . . . 1 . . . . . . . . . . . . . 1 . . . . . . 1 Parts Field Recycled 19 | . . . . . . . . . . . . . . . . . . . . . . . . . . . . . 19 . . Retrieved Matter 159 | . . . . . . . . . . . . . . . . . . . . . . . . . . . . . 159 . . Parts Self-Destructed . | . . . . . . . . . . . . . . . . . . . . . . . . . . . . . . . . Prevented . | . . . . . . . . . . . . . . . . . . . . . . . . . . . . . . . . Kills | -11 -10 -10 -10 -9 -8 -8 -8 -7 -7 -7 -7 -6 -6 -6 -6 -6 -6 -5 -5 -4 -4 -3 -3 -3 -3 -2 -2 -2 -2 -1 -1 ------- Run | Scr Mat Min Exi Min Mat Sto Gar Fac Gar Fac Gar Fac Was Fac Gar Fac Gar Fac Gar Fac Gar Res Gar Res Gar Res Gar Res Gar Acc Com Combat Hostiles Destroyed 379 | . 14 3 . . 7 13 28 3 29 4 21 . 1 5 30 . 26 5 23 . 14 . 25 7 15 10 31 1 17 29 18 Guns 255 | . 14 . . . 7 9 4 3 4 4 16 . 1 5 30 . 23 5 6 . 14 . 11 4 14 10 13 1 11 29 17 AOE 119 | . . 3 . . . 3 22 . 24 . 5 . . . . . 3 . 17 . . . 13 3 1 . 18 . 6 . 1 Classes Destroyed 17 | 3 4 . . . 1 1 1 1 2 . 1 . 1 . . . 1 . . . . . . . . 1 . . . . . Worker 11 | 4 1 . . . . 2 . . . . . . . 1 . . . . . . . . . . . . . . . 1 2 Builder 4 | . . . . . . . . . . . . . . . . . . . . . . . . . . 3 . . . 1 . Tunneler 10 | 8 . . . . . . . . . . . . . . . . . . . . . . . . . 1 . . . 1 . Hauler 8 | . 2 . . . 1 3 . 1 . 1 . . . . . . . . . . . . . . . . . . . . . Recycler 5 | 1 1 . . . . . . . . 1 . . . . . . . . . . . . . . . . . . . . 2 Drone 4 | . . . . . . . . . 4 . . . . . . . . . . . . . . . . . . . . . . Watcher 5 | . 1 . . . . 1 . . . . . 1 . . 1 . . . . . . . . . 1 . . . . . . Swarmer 102 | . 9 3 . . . . 11 . 12 . . . . 3 6 . 11 . 12 . . . 8 . . . 13 . 7 5 2 Grunt 136 | . 5 . . . 6 7 13 1 10 1 7 . . 2 15 . 8 . 5 . 7 . 10 4 4 4 17 . 2 4 4 Brawler 7 | . . . . . . . 1 . 1 1 . . . . 1 . 1 . . . . . . . 1 1 . . . . . Duelist 11 | . . . . . . 1 1 . . . 4 . . . 4 . . . . . . . . . . 1 . . . . . Sentry 38 | . . . . . 1 5 2 . . . 6 . . . 4 . 2 . 1 . 4 . 2 . 5 . . 1 2 3 . Specialist 4 | . . . . . . . . . . . 2 . . . . . 1 . 1 . . . . . . . . . . . . Hunter 25 | . . . . . . . . . 2 1 1 . . . 1 . . 3 1 . 2 . 4 . 2 . . . 4 4 . Programmer 40 | . . . . . . . . 2 . 1 1 . . . . . 2 2 2 . 1 . . 3 2 4 . . 1 12 7 Behemoth 7 | . . . . . . . . . . . . . . . . . 1 . 1 . . . 1 . 1 . 1 . 1 1 . Compactor 1 | . . . . . . . . . . . . . 1 . . . . . . . . . . . . . . . . . . M Guard 2 | . . . . . . . . . . . . . . . . . . . . . . . . . . . . . . . 2 Combat Programmer 2 | . . . . . . . . . . . . . . . . . . . . . . . . . . . . . . . 2 Best Kill Streak 13 | 3 5 3 . . 4 4 8 2 8 2 5 1 1 3 6 . 5 2 9 . 5 . 6 4 6 13 12 1 4 7 4 Combat Bots Only 12 | . 5 3 . . 3 3 8 2 8 2 5 . 1 3 6 . 5 2 9 . 5 . 6 4 5 8 12 1 4 6 4 Max Kills in Single Turn 8 | 2 1 3 . . 1 2 3 1 3 1 2 1 1 2 2 . 3 1 3 . 1 . 4 2 2 2 8 1 3 2 2 Gunslinging 1 | . . . . . . . . . . . . . . . 1 . . . . . . . . . 1 1 1 . . . 1 Exploded 8 | . . 3 . . . 1 3 . 3 . 2 . . . . . 3 . 3 . . . 4 2 1 . 8 . 3 . 1 Melee . | . . . . . . . . . . . . . . . . . . . . . . . . . . . . . . . . Uniques/NPCs Destroyed 1 | . . . . . . . . . . . . . . . . . . . . . . . . . . . . . . . 1 MAIN.C Shell (-1/Command) Combat | -11 -10 -10 -10 -9 -8 -8 -8 -7 -7 -7 -7 -6 -6 -6 -6 -6 -6 -5 -5 -4 -4 -3 -3 -3 -3 -2 -2 -2 -2 -1 -1 -------- Run | Scr Mat Min Exi Min Mat Sto Gar Fac Gar Fac Gar Fac Was Fac Gar Fac Gar Fac Gar Fac Gar Res Gar Res Gar Res Gar Res Gar Acc Com Damage Taken 33836 | . 501 77 . . 415 538 252 228 597 388 1370 . 101 272 910 . 468 676 231 47 477 . 1773 452 1298 2890 1234 408 735 5457 12041 Core 2909 | . 82 47 . . 33 46 54 33 . 31 108 . . 28 58 . 22 11 . . 22 . 306 21 13 258 55 52 15 125 1489 Absorbed by Shields 7831 | . . . . . . . 65 82 156 . 133 . . . 272 . 169 224 243 . 339 . 860 366 590 166 763 161 632 780 1830 Reduced by Siege Mode 1610 | . . . . . . . . . . . . . . . 33 . 13 28 13 . 18 . 64 35 120 272 34 . 60 493 427 Core Remaining (%) 80 | 100 . . . 48 . . 75 . . . 75 . . . . . 87 . 98 . 98 . . . 73 . . . 73 . . Volleys Fired 1228 | 57 59 1 . . 20 49 54 15 77 24 58 2 23 10 91 . 78 25 51 3 42 8 49 25 46 26 38 3 51 93 150 Largest 4 | 2 2 1 . . 4 4 4 4 3 4 4 4 4 4 4 . 4 4 4 1 4 1 4 4 4 4 4 4 4 4 4 Hottest 150 | 40 46 33 . . 83 150 92 92 115 92 116 116 116 121 121 . 140 140 140 30 138 30 138 132 132 136 131 123 126 140 147 Shots Fired 3200 | 114 118 1 . . 80 110 69 54 97 81 179 8 29 40 291 . 201 82 93 3 127 8 164 49 156 91 115 11 104 323 402 Gun 2906 | 114 118 . . . 80 94 21 52 35 78 173 8 26 40 291 . 199 76 80 . 127 . 143 33 149 87 97 10 96 317 362 Cannon 32 | . . . . . . . . . 32 . . . . . . . . . . . . . . . . . . . . . . Launcher 204 | . . 1 . . . 6 48 2 30 . 6 . . . . . 1 . 13 . . . 21 5 7 . 18 . 8 . 38 Special 58 | . . . . . . 10 . . . 3 . . 3 . . . 1 6 . 3 . 8 . 11 . 4 . 1 . 6 2 Kinetic 2857 | 114 118 . . . 80 48 21 52 35 78 173 8 26 40 291 . 199 76 80 . 127 . 143 33 149 87 97 10 96 317 359 Thermal 10 | . . . . . . 10 . . . . . . . . . . . . . . . . . . . . . . . . . Explosive 132 | . . 1 . . . . . 2 12 . 6 . . . . . 1 . 13 . . . 21 5 7 . 18 . 8 . 38 Electromagnetic 153 | . . . . . . 52 48 . 50 . . . . . . . . . . . . . . . . . . . . . 3 Robot Hit Streak 93 | 11 9 5 . . 17 25 12 9 11 13 24 2 11 3 42 . 32 17 32 2 33 26 22 34 73 53 93 12 18 56 52 Robot Miss Streak 6 | 3 4 . . . 2 2 4 2 4 4 2 3 3 4 3 . 2 3 2 1 1 2 2 6 1 3 3 1 1 3 2 Penetration Max 2 | . . . . . . . . . . . . . . 1 2 . 2 . . . 1 . 1 1 1 2 1 . 1 2 1 Secondary Targets 50 | . 1 . . . . . . . . 1 1 . . 1 6 . . 1 . . 4 . 1 2 3 8 3 . . 11 7 Max Gunslinging Chain 2 | . 1 . . . . . . . . 1 1 . . 1 1 . . 1 . . 1 . 1 1 1 1 2 . . 1 1 Shots Hit Robots 2404 | 75 74 1 . . 58 73 26 32 50 57 116 2 20 16 214 . 131 54 71 2 100 6 123 39 124 82 88 8 75 287 400 Core Hits 1113 | 22 32 3 . . 27 39 39 7 62 15 57 1 4 9 87 . 49 13 58 . 48 . 64 17 62 31 88 4 55 87 133 Critical Hits 129 | . 1 . . . . . 1 . 2 1 2 . 1 1 10 . 2 2 2 . 2 . 3 4 10 3 3 . 6 29 44 Critical Kills 34 | . 1 . . . . . 1 . 1 . 1 . . . 2 . 1 . . . . . 2 1 4 2 1 . 3 9 5 Critical Parts Destroyed 62 | . . . . . . . . . . 1 1 . 1 1 8 . 1 2 2 . 2 . 1 3 4 1 2 . 3 11 18 Melee Attacks 138 | . . . . . . 4 12 3 4 15 7 . 1 1 9 . . 3 . . . 1 . 8 1 . 16 . 7 4 42 Thermal 6 | . . . . . . . . . . . . . . . . . . . . . . . . . . . . . . . 6 Impact . | . . . . . . . . . . . . . . . . . . . . . . . . . . . . . . . . Slashing 51 | . . . . . . 4 12 3 4 15 7 . 1 1 . . . 3 . . . 1 . . . . . . . . . Piercing 72 | . . . . . . . . . . . . . . . . . . . . . . . . 8 1 . 16 . 7 4 36 Sneak Attacks 10 | . . . . . . . . . . . . . . . 9 . . . . . . . . . . . . . . 1 . Combat Hostiles . | . . . . . . . . . . . . . . . . . . . . . . . . . . . . . . . . Follow-up Attacks . | . . . . . . . . . . . . . . . . . . . . . . . . . . . . . . . . Damage Inflicted 73776 | 587 699 147 . . 505 1585 2111 451 3401 842 2638 23 537 468 4167 . 3874 1166 3943 . 2372 . 5408 1764 3692 2522 6011 171 3426 7704 13562 Guns 46757 | 587 699 . . . 505 1041 219 451 226 842 1735 23 486 468 4167 . 3621 1166 1339 . 2372 . 2268 825 3027 2522 1732 171 1433 7562 7270 Cannons 745 | . . . . . . . . . 745 . . . . . . . . . . . . . . . . . . . . . . Explosions 21604 | . . 147 . . . 544 1892 . 2430 . 903 . . . . . 253 . 2604 . . . 3140 939 563 . 4279 . 1125 . 2785 Melee 4670 | . . . . . . . . . . . . . 51 . . . . . . . . . . . 102 . . . 868 142 3507 Ramming . | . . . . . . . . . . . . . . . . . . . . . . . . . . . . . . . . Kinetic 46112 | 587 699 . . . 505 396 219 451 226 842 1735 23 486 468 4167 . 3621 1166 1339 . 2372 . 2268 825 3027 2522 1732 171 1433 7562 7270 Thermal 761 | . . . . . . 238 105 . 418 . . . . . . . . . . . . . . . . . . . . . . Explosive 17580 | . . 147 . . . . . . 842 . 903 . . . . . 253 . 2604 . . . 3140 939 563 . 4279 . 1125 . 2785 Electromagnetic 4653 | . . . . . . 951 1787 . 1915 . . . . . . . . . . . . . . . . . . . . . . Impact . | . . . . . . . . . . . . . . . . . . . . . . . . . . . . . . . . Slashing 51 | . . . . . . . . . . . . . 51 . . . . . . . . . . . . . . . . . . Piercing 4619 | . . . . . . . . . . . . . . . . . . . . . . . . . 102 . . . 868 142 3507 Highest Corruption 49 | . . . . . . . . 1 1 5 9 . . . . . 1 3 4 . . . . 4 9 10 20 20 20 1 49 Average Corruption 7 | . . . . . . . . 1 1 2 7 . . . . . 1 2 3 . . . . 3 8 8 10 20 20 1 27 Corruption Purged . | . . . . . . . . . . . . . . . . . . . . . . . . . . . . . . . . Effects 785 | . . . . . . . . 4 8 21 108 . . . . . 6 . 67 . . . . 8 108 10 87 18 130 2 208 Message Errors 143 | . . . . . . . . 3 3 4 29 . . . . . 5 . 20 . . . . 1 25 . 14 3 20 1 15 Matter Fused 125 | . . . . . . . . . . 1 20 . . . . . . . 17 . . . . 1 28 3 18 3 20 . 14 Heat Flow Errors 72 | . . . . . . . . . . 3 9 . . . . . . . 12 . . . . 1 13 . 9 3 11 . 11 Energy Discharges 73 | . . . . . . . . 1 3 4 11 . . . . . . . 9 . . . . 1 11 . 7 3 13 . 10 Parts Rejected 1 | . . . . . . . . . . . 1 . . . . . . . . . . . . . . . . . . . . Data Loss (minor) 62 | . . . . . . . . . 2 2 10 . . . . . 1 . 9 . . . . 2 11 . 8 . 7 . 10 Data Loss (major) 19 | . . . . . . . . . . 2 5 . . . . . . . . . . . . . 3 . 4 . 4 . 1 Misfires 23 | . . . . . . . . . . . 7 . . . . . . . . . . . . . 3 1 2 3 5 . 2 Alerts 1 | . . . . . . . . . . . . . . . . . . . . . . . . . . 1 . . . . . Misdirections 40 | . . . . . . . . . . . . . . . . . . . . . . . . . . . 4 2 20 . 14 Targeting Errors 188 | . . . . . . . . . . 4 13 . . . . . . . . . . . . 2 11 3 17 . 28 1 109 Weapon Failures 38 | . . . . . . . . . . 1 3 . . . . . . . . . . . . . 3 2 4 1 2 . 22 Overload Shots . | . . . . . . . . . . . . . . . . . . . . . . . . . . . . . . . . Overflow Damage 1108 | . . . . . . 16 65 . 75 . 21 . . . . . . . 73 . . . 184 36 34 . 161 . 21 . 422 Projectiles . | . . . . . . . . . . . . . . . . . . . . . . . . . . . . . . . . Explosions 686 | . . . . . . 16 65 . 75 . 21 . . . . . . . 73 . . . 184 36 34 . 161 . 21 . . Melee 422 | . . . . . . . . . . . . . . . . . . . . . . . . . . . . . . . 422 Knockbacks . | . . . . . . . . . . . . . . . . . . . . . . . . . . . . . . . . Impact . | . . . . . . . . . . . . . . . . . . . . . . . . . . . . . . . . Kinetic . | . . . . . . . . . . . . . . . . . . . . . . . . . . . . . . . . Secondary . | . . . . . . . . . . . . . . . . . . . . . . . . . . . . . . . . Self-Inflicted Damage 768 | . . 38 . . . 52 144 . 135 . 273 . . . . . . . . . . . . 68 . . 58 . . . . Shots 24 | . . 1 . . . 2 7 . 5 . 6 . . . . . . . . . . . . 2 . . 1 . . . . Rammed . | . . . . . . . . . . . . . . . . . . . . . . . . . . . . . . . . Targets Rammed . | . . . . . . . . . . . . . . . . . . . . . . . . . . . . . . . . Kicked . | . . . . . . . . . . . . . . . . . . . . . . . . . . . . . . . . Crushed . | . . . . . . . . . . . . . . . . . . . . . . . . . . . . . . . . Highest Temperature 592 | . 16 . . . 288 387 150 60 210 205 228 53 60 96 199 . 198 180 240 3 194 . 592 198 249 12 409 143 253 499 477 Average Temperature 93 | . 8 . . . 118 84 33 26 60 33 40 27 27 35 96 . 81 79 77 3 108 . 212 83 74 4 115 48 100 108 148 Received Heat Transfer 3074 | . 114 . . . 216 216 42 12 6 45 306 . . 36 232 . 60 . 34 9 109 . 306 46 117 147 93 34 62 152 680 Effects 32 | . . . . . . 2 . . . . . . . . . . . . . . . . 9 . . . 5 . . 2 14 Shutdowns 7 | . . . . . . 1 . . . . . . . . . . . . . . . . . . . . 2 . . 1 3 Energy Bleed 5 | . . . . . . 1 . . . . . . . . . . . . . . . . 2 . . . . . . 1 1 Interference 12 | . . . . . . . . . . . . . . . . . . . . . . . 3 . . . 3 . . . 6 Matter Decay 1 | . . . . . . . . . . . . . . . . . . . . . . . 1 . . . . . . . . Short Circuit 3 | . . . . . . . . . . . . . . . . . . . . . . . 2 . . . . . . . 1 Damage (major) 3 | . . . . . . . . . . . . . . . . . . . . . . . . . . . . . . . 3 Damage (core) 1 | . . . . . . . . . . . . . . . . . . . . . . . 1 . . . . . . . . Siege Activations 101 | . . . . . . . . . . . . . . . 12 . 15 2 7 . 8 . 10 1 7 2 4 2 9 11 11 Total Turns 3383 | . . . . . . . . . . . . . . . 451 . 401 56 386 . 142 . 385 25 236 95 105 58 272 347 424 Longest Duration 240 | . . . . . . . . . . . . . . . 88 . 98 32 240 . 48 . 194 25 64 77 41 47 135 112 148 Robots Corrupted 9 | . . . . . . 1 5 . 3 . . . . . . . . . . . . . . . . . . . . . . Combat Hostiles 4 | . . . . . . 1 2 . 1 . . . . . . . . . . . . . . . . . . . . . . Parts Fried 32 | . . . . . . 8 13 . 11 . . . . . . . . . . . . . . . . . . . . . . Impact Corruptions . | . . . . . . . . . . . . . . . . . . . . . . . . . . . . . . . . Robots Melted . | . . . . . . . . . . . . . . . . . . . . . . . . . . . . . . . . Combat Hostiles . | . . . . . . . . . . . . . . . . . . . . . . . . . . . . . . . . Parts Melted . | . . . . . . . . . . . . . . . . . . . . . . . . . . . . . . . . Heat Transferred 900 | . . . . . . 250 150 . 500 . . . . . . . . . . . . . . . . . . . . . . Parts Sabotaged 4 | . . . . . . . . . . . . . . . . . . . . . . . . . . 4 . . . . . Parts Stolen . | . . . . . . . . . . . . . . . . . . . . . . . . . . . . . . . . Parts Stripped . | . . . . . . . . . . . . . . . . . . . . . . . . . . . . . . . . Power Chain Reactions 15 | . . . . . . 4 5 . 6 . . . . . . . . . . . . . . . . . . . . . . Missiles Intercepted . | . . . . . . . . . . . . . . . . . . . . . . . . . . . . . . . . Alert | -11 -10 -10 -10 -9 -8 -8 -8 -7 -7 -7 -7 -6 -6 -6 -6 -6 -6 -5 -5 -4 -4 -3 -3 -3 -3 -2 -2 -2 -2 -1 -1 ------- Run | Scr Mat Min Exi Min Mat Sto Gar Fac Gar Fac Gar Fac Was Fac Gar Fac Gar Fac Gar Fac Gar Res Gar Res Gar Res Gar Res Gar Acc Com Peak Influence 1581 | 40 321 176 . . 193 468 965 663 1101 599 709 393 137 99 1064 581 1047 621 1068 575 808 456 1096 816 1008 931 1581 911 1135 692 246 Initial 873 | . 26 91 . . . 5 287 506 346 577 109 371 137 . . 558 266 529 380 560 388 454 342 616 73 567 600 873 683 680 170 Average 614 | 16 172 172 . . 94 177 822 520 951 341 442 377 32 18 748 518 854 535 865 571 653 454 808 394 731 700 1141 888 937 274 91 Maximum Alert Level 4 | . 1 . . . . 2 3 2 4 2 3 1 . . 3 2 3 2 3 2 3 2 3 3 3 3 4 3 4 2 1 Low Security (%) 21 | 100 49 100 . 100 100 68 . . . 35 12 . 100 100 7 . . . . . . . . 33 9 . . . . 57 91 Level 1 9 | . 50 . . . . 8 3 . 10 14 25 100 . . 13 26 2 . 1 . 5 . 14 27 9 . . . . 13 8 Level 2 21 | . . . . . . 23 14 100 2 50 51 . . . 9 73 18 100 19 100 56 100 23 13 13 50 11 . 6 29 . Level 3 45 | . . . . . . . 81 . 73 . 10 . . . 70 . 78 . 78 . 37 . 61 25 67 49 41 100 82 . . Level 4 2 | . . . . . . . . . 13 . . . . . . . . . . . . . . . . . 46 . 10 . . Level 5 . | . . . . . . . . . . . . . . . . . . . . . . . . . . . . . . . . High Security . | . . . . . . . . . . . . . . . . . . . . . . . . . . . . . . . . Max Security . | . . . . . . . . . . . . . . . . . . . . . . . . . . . . . . . . Squads Dispatched 35 | . 2 . . . 2 6 . 2 . 2 . . . . . . . 2 . . . . . 2 . 4 . 3 . 7 3 Investigation 3 | . 1 . . . . 1 . . . . . . . . . . . . . . . . . . . . . . . 1 . Extermination 14 | . . . . . . . . 2 . 1 . . . . . . . 1 . . . . . 1 . 1 . 1 . 4 3 Reinforcement 8 | . 1 . . . 2 2 . . . 1 . . . . . . . . . . . . . 1 . . . . . 1 . Assault 2 | . . . . . . . . . . . . . . . . . . 1 . . . . . . . 1 . . . . . Garrison 8 | . . . . . . 3 . . . . . . . . . . . . . . . . . . . 2 . 2 . 1 . Intercept . | . . . . . . . . . . . . . . . . . . . . . . . . . . . . . . . . Construction Impeded 1 | . . . . . . . . . . . . . . . . . . . . . . . . . . . . . . 1 . Haulers Reinforced . | . . . . . . . . . . . . . . . . . . . . . . . . . . . . . . . . Stealth | -11 -10 -10 -10 -9 -8 -8 -8 -7 -7 -7 -7 -6 -6 -6 -6 -6 -6 -5 -5 -4 -4 -3 -3 -3 -3 -2 -2 -2 -2 -1 -1 --------- Run | Scr Mat Min Exi Min Mat Sto Gar Fac Gar Fac Gar Fac Was Fac Gar Fac Gar Fac Gar Fac Gar Res Gar Res Gar Res Gar Res Gar Acc Com Distress Signals 14 | . 5 . . . . 2 . . . 1 . . . . . . . 2 . . . . . . . 1 . . . 2 1 Communications Jammed 1 | . . . . . . . . . . . . . . . . . . . . . . . . . . 1 . . . . . Distress Signals 1 | . . . . . . . . . . . . . . . . . . . . . . . . . . 1 . . . . . Times Spotted 456 | . 30 3 . . 12 30 20 5 21 8 20 1 1 6 29 2 23 8 18 1 13 . 25 9 24 23 30 5 16 41 32 Peak Tracking Total 12 | . 9 3 . . 4 4 3 2 7 2 5 1 1 3 7 2 5 3 6 1 5 . 6 4 8 11 12 5 4 8 9 Tactical Retreats 30 | . 3 . . . . 3 3 . 5 . 1 . . . 5 . 1 . . . . . 1 . . 1 1 . 1 2 3 Traps | -11 -10 -10 -10 -9 -8 -8 -8 -7 -7 -7 -7 -6 -6 -6 -6 -6 -6 -5 -5 -4 -4 -3 -3 -3 -3 -2 -2 -2 -2 -1 -1 ------- Run | Scr Mat Min Exi Min Mat Sto Gar Fac Gar Fac Gar Fac Was Fac Gar Fac Gar Fac Gar Fac Gar Res Gar Res Gar Res Gar Res Gar Acc Com Traps Triggered 94 | . 5 . . . . 2 16 . 8 . 9 1 . . 15 . 5 . 13 . 1 1 1 . 1 . 10 . 2 1 3 Indirectly 11 | . . . . . . . 10 . 1 . . . . . . . . . . . . . . . . . . . . . . Trap Hack Attempts 127 | . . . . . . . . . . . . . . . 127 . . . . . . . . . . . . . . . . Triggered . | . . . . . . . . . . . . . . . . . . . . . . . . . . . . . . . . Disarmed 1 | . . . . . . . . . . . . . . . 1 . . . . . . . . . . . . . . . . Reprogrammed 10 | . . . . . . . . . . . . . . . 10 . . . . . . . . . . . . . . . . Reused . | . . . . . . . . . . . . . . . . . . . . . . . . . . . . . . . . Traps Extracted 10 | . . . . . . . . . . . . . . . 10 . . . . . . . . . . . . . . . . Installed 5 | . . . . . . . . . . . . . . . 5 . . . . . . . . . . . . . . . . Triggered . | . . . . . . . . . . . . . . . . . . . . . . . . . . . . . . . . Machines | -11 -10 -10 -10 -9 -8 -8 -8 -7 -7 -7 -7 -6 -6 -6 -6 -6 -6 -5 -5 -4 -4 -3 -3 -3 -3 -2 -2 -2 -2 -1 -1 ---------- Run | Scr Mat Min Exi Min Mat Sto Gar Fac Gar Fac Gar Fac Was Fac Gar Fac Gar Fac Gar Fac Gar Res Gar Res Gar Res Gar Res Gar Acc Com Machines Disabled 42 | . 1 1 . . . 5 2 1 . . 3 1 . . 3 . 4 . 3 . 4 . 5 1 2 . 3 . 1 . 2 Max in Single Turn 2 | . 1 1 . . . 1 1 1 . . 2 1 . . 2 . 2 . 1 . 2 . 2 1 1 . 1 . 1 . 1 Garrison Access 3 | . . . . . . . . . . . . . . . . . . . . . . . . . . . . . . 3 . Garrison Relay 5 | . . . . . . . . . . . 1 . . . 1 . . . 1 . . . 1 . . . 1 . . . . Phase Generator 4 | . . . . . . . . . . . 1 . . . 1 . 1 . . . 1 . . . . . . . . . . Machines Sabotaged . | . . . . . . . . . . . . . . . . . . . . . . . . . . . . . . . . Garrisons Compromised . | . . . . . . . . . . . . . . . . . . . . . . . . . . . . . . . . Overloaded Fab Kills . | . . . . . . . . . . . . . . . . . . . . . . . . . . . . . . . . Fab Network Shutdowns . | . . . . . . . . . . . . . . . . . . . . . . . . . . . . . . . . Hacking | -11 -10 -10 -10 -9 -8 -8 -8 -7 -7 -7 -7 -6 -6 -6 -6 -6 -6 -5 -5 -4 -4 -3 -3 -3 -3 -2 -2 -2 -2 -1 -1 --------- Run | Scr Mat Min Exi Min Mat Sto Gar Fac Gar Fac Gar Fac Was Fac Gar Fac Gar Fac Gar Fac Gar Res Gar Res Gar Res Gar Res Gar Acc Com Machines Accessed 71 | . 7 . 1 . . 14 . 5 . 9 . 1 . 8 . 5 . 3 . 1 . 1 . 1 . 2 . 2 . 8 3 Terminals 41 | . 7 . . . . 9 . 3 . 3 . 1 . 4 . 3 . 1 . . . . . . . 1 . 1 . 5 3 Fabricators 4 | . . . . . . . . . . 1 . . . 2 . 1 . . . . . . . . . . . . . . . Repair Stations 6 | . . . . . . 2 . . . 4 . . . . . . . . . . . . . . . . . . . . . Recycling Units 2 | . . . . . . 2 . . . . . . . . . . . . . . . . . . . . . . . . . Scanalyzers 3 | . . . . . . . . 1 . . . . . 1 . . . 1 . . . . . . . . . . . . . Garrison Access 14 | . . . . . . 1 . 1 . 1 . . . 1 . 1 . 1 . 1 . 1 . 1 . 1 . 1 . 3 . Total Hacks 152 | . 25 . 1 . . 29 . 9 . 21 . 1 . 22 . 11 . 4 . 1 . 1 . 1 . 6 . 2 . 14 4 Successful 92 | . 16 . 1 . . 16 . 5 . 10 . . . 18 . 6 . 2 . 1 . 1 . 1 . 4 . 1 . 7 3 Failed 59 | . 9 . . . . 13 . 4 . 11 . 1 . 4 . 5 . 2 . . . . . . . 1 . 1 . 7 1 Catastrophic 7 | . . . . . . 2 . 1 . 1 . . . 1 . 1 . . . . . . . . . . . 1 . . . Database Lockouts 1 | . . . . . . . . . . . . . . . . . . . . . . . . . . 1 . . . . . Manual 41 | . 4 . 1 . . 6 . 3 . 10 . . . 5 . 6 . . . . . . . . . 2 . 1 . 2 1 Terminals 99 | . 25 . . . . 17 . 6 . 10 . 1 . 10 . 7 . 2 . . . . . . . 5 . 1 . 11 4 Fabricators 11 | . . . . . . . . . . 2 . . . 6 . 3 . . . . . . . . . . . . . . . Repair Stations 15 | . . . . . . 7 . . . 8 . . . . . . . . . . . . . . . . . . . . . Recycling Units 3 | . . . . . . 3 . . . . . . . . . . . . . . . . . . . . . . . . . Scanalyzers 8 | . . . . . . . . 2 . . . . . 5 . . . 1 . . . . . . . . . . . . . Garrison Access 15 | . . . . . . 2 . 1 . 1 . . . 1 . 1 . 1 . 1 . 1 . 1 . 1 . 1 . 3 . Terminal Hacks 46 | . 14 . 1 . . 11 . 1 . 2 . . . 5 . 1 . 1 . . . . . . . 3 . . . 4 3 Record 8 | . 2 . . . . 1 . . . . . . . . . . . . . . . . . . . 2 . . . 1 2 Part Schematic 2 | . . . . . . 1 . . . . . . . . . . . . . . . . . . . 1 . . . . . Prototype ID Bank 7 | . 3 . . . . 2 . 1 . . . . . 1 . . . . . . . . . . . . . . . . . Open Door 7 | . . . . . . 3 . . . . . . . . . . . . . . . . . . . . . . . 3 1 Level Access Points 1 | . 1 . . . . . . . . . . . . . . . . . . . . . . . . . . . . . . Branch Access Points 3 | . . . . . . 1 . . . 1 . . . 1 . . . . . . . . . . . . . . . . . Emergency Access Points 2 | . 2 . . . . . . . . . . . . . . . . . . . . . . . . . . . . . . Terminal Index 2 | . 1 . . . . . . . . . . . . . . 1 . . . . . . . . . . . . . . . Garrison Index 2 | . . . . . . . . . . . . . . 1 . . . 1 . . . . . . . . . . . . . Alert Level 1 | . . . . . . 1 . . . . . . . . . . . . . . . . . . . . . . . . . Unreport Threat 2 | . . . . . . . . . . 1 . . . 1 . . . . . . . . . . . . . . . . . Maintenance Status 1 | . 1 . . . . . . . . . . . . . . . . . . . . . . . . . . . . . . Security Status 1 | . . . . . . 1 . . . . . . . . . . . . . . . . . . . . . . . . . Hauler Manifests 1 | . . . . . . 1 . . . . . . . . . . . . . . . . . . . . . . . . . Registered Components 2 | . 1 . . . . . . . . . . . . 1 . . . . . . . . . . . . . . . . . Zone Layout 3 | . 3 . . . . . . . . . . . . . . . . . . . . . . . . . . . . . . EX-Prototype ID Bank 1 | . . . 1 . . . . . . . . . . . . . . . . . . . . . . . . . . . . Fabricator Hacks 10 | . . . . . . . . . . 2 . . . 5 . 3 . . . . . . . . . . . . . . . Load Schematic 3 | . . . . . . . . . . 1 . . . 2 . . . . . . . . . . . . . . . . . Build 7 | . . . . . . . . . . 1 . . . 3 . 3 . . . . . . . . . . . . . . . Repair Station Hacks 6 | . . . . . . 3 . . . 3 . . . . . . . . . . . . . . . . . . . . . Scan Component 4 | . . . . . . 2 . . . 2 . . . . . . . . . . . . . . . . . . . . . Repair 2 | . . . . . . 1 . . . 1 . . . . . . . . . . . . . . . . . . . . . Recycling Unit Hacks . | . . . . . . . . . . . . . . . . . . . . . . . . . . . . . . . . Scanalyzer 7 | . . . . . . . . 2 . . . . . 5 . . . . . . . . . . . . . . . . . Insert Component 4 | . . . . . . . . 1 . . . . . 3 . . . . . . . . . . . . . . . . . Analyze 3 | . . . . . . . . 1 . . . . . 2 . . . . . . . . . . . . . . . . . Garrison Access Hacks 14 | . . . . . . 1 . 1 . 1 . . . 1 . 1 . 1 . 1 . 1 . 1 . 1 . 1 . 3 . Unlock Access 11 | . . . . . . 1 . 1 . 1 . . . 1 . 1 . 1 . 1 . 1 . 1 . 1 . 1 . . . Seal Access 3 | . . . . . . . . . . . . . . . . . . . . . . . . . . . . . . 3 . Unauthorized Hacks 9 | . 2 . . . . 1 . 1 . 2 . . . 2 . 1 . . . . . . . . . . . . . . . Terminals 9 | . 2 . . . . 1 . 1 . 2 . . . 2 . 1 . . . . . . . . . . . . . . . Track 2 | . 1 . . . . 1 . . . . . . . . . . . . . . . . . . . . . . . . . Assimilate 4 | . 1 . . . . . . 1 . 2 . . . . . . . . . . . . . . . . . . . . . Botnet 3 | . . . . . . . . . . . . . . 2 . 1 . . . . . . . . . . . . . . . Fabricators . | . . . . . . . . . . . . . . . . . . . . . . . . . . . . . . . . Repair Stations . | . . . . . . . . . . . . . . . . . . . . . . . . . . . . . . . . Recycling Units . | . . . . . . . . . . . . . . . . . . . . . . . . . . . . . . . . Scanalyzers . | . . . . . . . . . . . . . . . . . . . . . . . . . . . . . . . . Garrison Access . | . . . . . . . . . . . . . . . . . . . . . . . . . . . . . . . . Data Cores Recovered . | . . . . . . . . . . . . . . . . . . . . . . . . . . . . . . . . Used . | . . . . . . . . . . . . . . . . . . . . . . . . . . . . . . . . Hacking Detections 54 | . 7 . . . . 10 . 4 . 7 . 1 . 8 . 5 . 1 . . . 1 . 1 . 1 . 2 . 4 2 Full Trace Events 1 | . . . . . . . . . . . . . . . . . . . . . . . . . . . . . . 1 . Feedback Events . | . . . . . . . . . . . . . . . . . . . . . . . . . . . . . . . . Feedback Blocked . | . . . . . . . . . . . . . . . . . . . . . . . . . . . . . . . . Robot Schematics Acquired . | . . . . . . . . . . . . . . . . . . . . . . . . . . . . . . . . Robots Built . | . . . . . . . . . . . . . . . . . . . . . . . . . . . . . . . . Matter . | . . . . . . . . . . . . . . . . . . . . . . . . . . . . . . . . Time . | . . . . . . . . . . . . . . . . . . . . . . . . . . . . . . . . Total Robot Build Rating . | . . . . . . . . . . . . . . . . . . . . . . . . . . . . . . . . Part Schematics Acquired 5 | . . . . . . 1 . 1 . . . . . 2 . . . . . . . . . . . 1 . . . . . Parts Built 8 | . . . . . . . . . . 1 . . . 3 . 4 . . . . . . . . . . . . . . . Matter 1506 | . . . . . . . . . . 285 . . . 753 . 468 . . . . . . . . . . . . . . . Time 460 | . . . . . . . . . . 152 . . . 192 . 116 . . . . . . . . . . . . . . . Total Part Build Rating 52 | . . . . . . . . . . 5 . . . 19 . 28 . . . . . . . . . . . . . . . Parts Repaired 2 | . . . . . . 1 . . . 1 . . . . . . . . . . . . . . . . . . . . . Time 160 | . . . . . . 80 . . . 80 . . . . . . . . . . . . . . . . . . . . . Parts Recycled . | . . . . . . . . . . . . . . . . . . . . . . . . . . . . . . . . Recycled Matter . | . . . . . . . . . . . . . . . . . . . . . . . . . . . . . . . . Retrieved Matter . | . . . . . . . . . . . . . . . . . . . . . . . . . . . . . . . . Retrieved Components . | . . . . . . . . . . . . . . . . . . . . . . . . . . . . . . . . Parts Scanalyzed 3 | . . . . . . . . 1 . . . . . 2 . . . . . . . . . . . . . . . . . Part Schematics Acquired 3 | . . . . . . . . 1 . . . . . 2 . . . . . . . . . . . . . . . . . Parts Damaged . | . . . . . . . . . . . . . . . . . . . . . . . . . . . . . . . . Bothacking | -11 -10 -10 -10 -9 -8 -8 -8 -7 -7 -7 -7 -6 -6 -6 -6 -6 -6 -5 -5 -4 -4 -3 -3 -3 -3 -2 -2 -2 -2 -1 -1 ------------ Run | Scr Mat Min Exi Min Mat Sto Gar Fac Gar Fac Gar Fac Was Fac Gar Fac Gar Fac Gar Fac Gar Res Gar Res Gar Res Gar Res Gar Acc Com Used RIF Installer 11 | . . . . . . . 1 . 1 . 1 . . . 1 . 1 . 1 . 1 . 1 . 1 . 1 . 1 . . Command Fork 2 | . . . . . . . . . . . 1 . . . . . . . . . . . 1 . . . . . . . . Threat Obfuscator 1 | . . . . . . . . . . . . . . . . . . . . . . . . . . . 1 . . . . Signal Jammer 1 | . . . . . . . . . . . . . . . . . . . . . 1 . . . . . . . . . . Robot Detection 1 | . . . . . . . . . . . . . . . . . 1 . . . . . . . . . . . . . . Patrol Navigation 1 | . . . . . . . . . . . . . . . . . . . . . . . . . . . . . 1 . . Watcher Feeds 1 | . . . . . . . . . . . . . . . 1 . . . . . . . . . . . . . . . . Alert ID Control 1 | . . . . . . . . . 1 . . . . . . . . . . . . . . . . . . . . . . Structural Interface 1 | . . . . . . . . . . . . . . . . . . . 1 . . . . . . . . . . . . Autoassimilate 1 | . . . . . . . . . . . . . . . . . . . . . . . . . 1 . . . . . . Robots Hacked 15 | . . . . . . . . . . 1 . . 1 . . . 1 1 . 1 . 2 . 3 . 1 . 1 . 2 1 Non-combat 10 | . . . . . . . . . . 1 . . . . . . . 1 . . . 2 . 3 . . . 1 . 2 . Combat 5 | . . . . . . . . . . . . . 1 . . . 1 . . 1 . . . . . 1 . . . . 1 Robot Hacks Applied 35 | . . . . . . . . . . 3 . . 2 . . . 1 4 . 2 . 4 . 10 . 1 . 1 . 6 1 parse_system 5 | . . . . . . . . . . 1 . . . . . . 1 1 . . . . . . . . . . . 1 1 no_distress 4 | . . . . . . . . . . 1 . . . . . . . . . . . 1 . 2 . . . . . . . find_fabricator 2 | . . . . . . . . . . . . . . . . . . . . . . 1 . 1 . . . . . . . drop_inventory 4 | . . . . . . . . . . . . . . . . . . . . . . 2 . 1 . . . 1 . . . find_station 1 | . . . . . . . . . . 1 . . . . . . . . . . . . . . . . . . . . . purge_threat 7 | . . . . . . . . . . . . . . . . . . . . . . . . 4 . . . . . 3 . block_reporting 1 | . . . . . . . . . . . . . . . . . . . . . . . . . . . . . . 1 . map_route 2 | . . . . . . . . . . . . . . . . . . 1 . . . . . 1 . . . . . . . mark_security 1 | . . . . . . . . . . . . . . . . . . 1 . . . . . . . . . . . . . ignore_targets 1 | . . . . . . . . . . . . . 1 . . . . . . . . . . . . . . . . . . find_garrison 2 | . . . . . . . . . . . . . . . . . . . . 1 . . . . . 1 . . . . . overload_power 2 | . . . . . . . . . . . . . 1 . . . . 1 . . . . . . . . . . . . . streamctrl_low 1 | . . . . . . . . . . . . . . . . . . . . . . . . . . . . . . 1 . formatsys_high 2 | . . . . . . . . . . . . . . . . . . . . 1 . . . 1 . . . . . . . Relay Couplers Released 20 | . . . . . . . . . . . 5 . . . 3 . . . 3 . . . 5 . . . 4 . . . . Machine Destruction 20 | . . . . . . . . . . . 5 . . . 3 . . . 3 . . . 5 . . . 4 . . . . Attached 12 | . . . . . . . . . . . . 1 . . . . . 1 . 1 . 1 . 3 . 2 . 1 . 1 1 Robots Rewired 31 | . . . . . . . . . . . . . . . 9 . 9 . . . . . . . 13 . . . . . . Allies Hacked . | . . . . . . . . . . . . . . . . . . . . . . . . . . . . . . . . Hacks Repelled . | . . . . . . . . . . . . . . . . . . . . . . . . . . . . . . . . Allies | -11 -10 -10 -10 -9 -8 -8 -8 -7 -7 -7 -7 -6 -6 -6 -6 -6 -6 -5 -5 -4 -4 -3 -3 -3 -3 -2 -2 -2 -2 -1 -1 -------- Run | Scr Mat Min Exi Min Mat Sto Gar Fac Gar Fac Gar Fac Was Fac Gar Fac Gar Fac Gar Fac Gar Res Gar Res Gar Res Gar Res Gar Acc Com Total Allies 41 | . . . . . . 5 . 1 . 1 . . . . 9 . 9 . . 1 . . . 1 13 . . . . 1 . Largest Group 11 | . . . . . . 3 3 1 1 2 2 2 2 2 8 5 11 3 . 1 . . . 1 8 8 . . . 1 . Highest-Rated Group 380 | . . . . . . 126 126 26 26 36 36 36 36 36 182 158 280 108 . 49 . . . 37 380 351 . . . 26 . Highest-Rated Ally 99 | . . . . . . 99 94 26 26 26 26 26 26 26 41 41 41 41 . 49 . . . 37 64 64 . . . 26 . Total Orders 79 | . . . . . . . . 2 5 11 12 . 4 2 12 6 16 2 . 1 . . . . 4 2 . . . . . STAY 50 | . . . . . . . . 1 4 8 7 . 2 1 6 5 9 2 . 1 . . . . 2 2 . . . . . FOLLOW 24 | . . . . . . . . 1 1 3 5 . 2 1 2 1 6 . . . . . . . 2 . . . . . . GUARD 5 | . . . . . . . . . . . . . . . 4 . 1 . . . . . . . . . . . . . . Ally Attacks 307 | . . . . . . 53 13 . . . . . . . 36 3 33 12 . . . . . . 80 77 . . . . . Total Damage 9226 | . . . . . . 1493 139 . . . . . . . 637 140 1317 271 . . . . . . 3531 1698 . . . . . Kills 57 | . . . . . . 16 1 . . . . . . . 7 . 5 2 . . . . . . 18 8 . . . . . Allies Corrupted . | . . . . . . . . . . . . . . . . . . . . . . . . . . . . . . . . Allies Melted 3 | . . . . . . . . . . . . . . . . . . . . . . . . . 3 . . . . . . Intel | -11 -10 -10 -10 -9 -8 -8 -8 -7 -7 -7 -7 -6 -6 -6 -6 -6 -6 -5 -5 -4 -4 -3 -3 -3 -3 -2 -2 -2 -2 -1 -1 ------- Run | Scr Mat Min Exi Min Mat Sto Gar Fac Gar Fac Gar Fac Was Fac Gar Fac Gar Fac Gar Fac Gar Res Gar Res Gar Res Gar Res Gar Acc Com Robot Analysis Total . | . . . . . . . . . . . . . . . . . . . . . . . . . . . . . . . . Derelict Logs Recovered 4 | . . 1 . 3 . . . . . . . . . . . . . . . . . . . . . . . . . . . Drone Launches . | . . . . . . . . . . . . . . . . . . . . . . . . . . . . . . . . Drone Recoveries . | . . . . . . . . . . . . . . . . . . . . . . . . . . . . . . . . Exploration | -11 -10 -10 -10 -9 -8 -8 -8 -7 -7 -7 -7 -6 -6 -6 -6 -6 -6 -5 -5 -4 -4 -3 -3 -3 -3 -2 -2 -2 -2 -1 -1 ------------- Run | Scr Mat Min Exi Min Mat Sto Gar Fac Gar Fac Gar Fac Was Fac Gar Fac Gar Fac Gar Fac Gar Res Gar Res Gar Res Gar Res Gar Acc Com Turns Passed 55785 | 736 1379 102 410 923 528 3471 5383 727 3254 1510 2787 275 1557 807 5367 545 4170 665 3476 154 2187 216 3755 599 2911 461 1660 304 1916 1956 1594 Spaces Moved 25082 | 355 691 62 255 529 108 1295 1748 459 1714 868 1705 171 975 325 2471 260 1836 302 1641 111 1184 140 1360 253 1308 176 699 116 803 789 373 Core 14 | 1 1 . . . . . . . . . . . . . . . . . . . . . . . . . . . . . 12 Treads 14724 | 354 690 62 255 529 108 1295 732 . . . . . . . 1625 . 1466 . 1315 . 906 . 977 165 1308 176 699 116 803 789 354 Legs . | . . . . . . . . . . . . . . . . . . . . . . . . . . . . . . . . Wheels 10337 | . . . . . . . 1016 459 1714 868 1705 171 975 325 846 260 370 302 326 111 278 140 383 88 . . . . . . . Hover . | . . . . . . . . . . . . . . . . . . . . . . . . . . . . . . . . Flight 7 | . . . . . . . . . . . . . . . . . . . . . . . . . . . . . . . 7 Fastest Speed 40 | 50 160 160 160 160 180 180 110 130 110 140 100 140 140 160 140 160 160 130 140 130 130 123 113 133 145 165 157 177 157 165 40 Average Speed 158 | 159 160 160 160 169 189 195 141 130 119 140 124 149 150 160 171 160 176 148 173 130 153 132 168 154 150 167 176 177 176 170 189 Slowest Speed 550 | 160 550 160 160 180 200 200 200 140 140 140 140 150 200 160 200 160 200 170 220 130 260 133 270 180 165 197 177 177 177 190 290 Overloaded Moves . | . . . . . . . . . . . . . . . . . . . . . . . . . . . . . . . . Propulsion Burnouts . | . . . . . . . . . . . . . . . . . . . . . . . . . . . . . . . . Robots Hopped 2 | . . . . . . . . . . . . . . . . . 1 . . . . . . . . . . . . . 1 Cave-ins Triggered 2 | . . . . . . . . . . . . . . . . . . . . . . . . . . . 2 . . . . Exploration Rate (%) 47 | 25 85 12 68 85 14 95 96 15 79 20 84 6 96 11 95 11 72 10 95 3 91 6 85 7 91 8 69 3 48 21 10 Regions Visited 31 Branch Regions 5 Pre-discovered Areas 1 | . . 1 . . . . . . . . . . . . . . . . . . . . . . . . . . . . . Known Exits Taken 12 | . . . . . 1 1 . 1 . 1 . . . 1 . 1 . 1 . 1 . 1 . 1 . 1 . 1 . . . Unknown Exits Taken 6 | 1 1 1 1 1 . . . . . . . . . . . . . . . . . . . . . . . . . 1 . Scrap Searched 2 | . . . . 2 . . . . . . . . . . . . . . . . . . . . . . . . . . . Spaces Dug 67 | . . . . . . 12 5 2 1 15 . . . 1 . . . 3 . . . 1 . 7 . . 14 . . 2 4 Terrain Destroyed 944 | . . 8 . . . 25 17 2 47 15 104 . . 4 106 . 131 23 60 . 29 1 70 53 41 . 104 . 60 13 31 Melee 55 | . . . . . . 4 1 2 1 15 . . . 1 . . . 3 . . . 1 . 7 . . 14 . . 2 4 Projectile 173 | . . . . . . 8 . . . . 4 . . 3 16 . 23 20 16 . 4 . 23 . 8 . 3 . 7 11 27 AOE 716 | . . 8 . . . 13 16 . 46 . 100 . . . 90 . 108 . 44 . 25 . 47 46 33 . 87 . 53 . . Terrain Rammed . | . . . . . . . . . . . . . . . . . . . . . . . . . . . . . . . . Walls Destroyed . | . . . . . . . . . . . . . . . . . . . . . . . . . . . . . . . . Machines Disabled . | . . . . . . . . . . . . . . . . . . . . . . . . . . . . . . . . Actions | -11 -10 -10 -10 -9 -8 -8 -8 -7 -7 -7 -7 -6 -6 -6 -6 -6 -6 -5 -5 -4 -4 -3 -3 -3 -3 -2 -2 -2 -2 -1 -1 --------- Run | Scr Mat Min Exi Min Mat Sto Gar Fac Gar Fac Gar Fac Was Fac Gar Fac Gar Fac Gar Fac Gar Res Gar Res Gar Res Gar Res Gar Acc Com Total 38749 | 429 870 63 257 559 393 2135 4579 544 2830 1089 2239 186 1044 586 3423 389 2639 465 2201 118 1472 162 2726 413 2157 282 1008 209 1215 1183 884 Wait 9963 | 2 58 . . 26 256 707 2689 39 895 157 309 6 18 242 540 119 559 106 398 . 122 2 1144 90 512 55 164 75 246 233 194 Move 25056 | 354 690 61 254 528 107 1294 1747 459 1713 868 1703 171 974 325 2470 260 1833 302 1640 111 1183 139 1359 253 1307 176 698 116 802 788 371 Hop 2 | . . . . . . . . . . . . . . . . . 1 . . . . . . . . . . . . . 1 Pick Up 684 | 7 21 . 1 2 3 28 26 12 40 8 42 2 13 3 62 2 51 4 37 . 54 1 76 9 54 4 27 5 46 21 23 Fast Attach 179 | 8 6 . . . 1 7 7 1 12 1 13 . . . 13 2 10 1 9 . 15 4 17 2 10 2 7 1 13 3 14 Attach 190 | . 2 . . . 4 3 6 2 3 . 6 3 6 . 8 . 6 9 9 2 8 1 20 1 5 8 11 2 6 21 38 Detach 71 | 1 . . . . 1 3 4 . 5 . 5 . 2 . 2 . 3 7 10 . . . 4 . 4 1 5 2 6 2 4 Swap 201 | . 11 1 1 1 1 14 7 8 5 7 12 1 4 2 9 2 4 6 6 2 6 4 7 12 12 8 12 3 6 10 17 Drop 441 | . 23 . 1 2 . 26 17 5 20 9 20 1 3 3 45 4 33 2 13 . 34 2 50 13 36 2 13 2 28 8 26 Fire 1228 | 57 59 1 . . 20 49 54 15 77 24 58 2 23 10 91 . 78 25 51 3 42 8 49 25 46 26 38 3 51 93 150 Melee 138 | . . . . . . 4 12 3 4 15 7 . 1 1 9 . . 3 . . . 1 . 8 1 . 16 . 7 4 42 Ram . | . . . . . . . . . . . . . . . . . . . . . . . . . . . . . . . . Kick . | . . . . . . . . . . . . . . . . . . . . . . . . . . . . . . . . Crush . | . . . . . . . . . . . . . . . . . . . . . . . . . . . . . . . . Escape Stasis 223 | . . . . . . . 10 . 56 . 64 . . . 28 . 4 . 26 . 8 . . . 2 . 17 . 4 . 4 Rewire 241 | . . . . . . . . . . . . . . . 14 . 57 . 2 . . . . . 168 . . . . . . Trap 132 | . . . . . . . . . . . . . . . 132 . . . . . . . . . . . . . . . . Miscellaneous . | . . . . . . . . . . . . . . . . . . . . . . . . . . . . . . . . Route ------- -11/Scrapyard -10/Materials (discovered 5 exits: *Mat x3 / [*Min x2]) -10/Mines -10/Exiles -9/Mines -8/Materials (discovered 2 exits: Fac / *Sto) -8/Storage (discovered 3 exits: *Fac / Rec / Gar) -8/Garrison (discovered 3 exits: *Fac x3) -7/Factory (discovered 2 exits: *Fac / Gar) -7/Garrison (discovered 3 exits: *Fac x3) -7/Factory (discovered 3 exits: Low x2 / Gar) -7/Garrison (discovered 3 exits: *Fac x3) -6/Factory -6/Waste -6/Factory (discovered 3 exits: Low x2 / Gar) -6/Garrison (discovered 3 exits: *Fac x3) -6/Factory (discovered 2 exits: *Fac / Gar) -6/Garrison (discovered 2 exits: *Fac x2) -5/Factory -5/Garrison (discovered 3 exits: *Fac x3) -4/Factory -4/Garrison (discovered 3 exits: *Res x3) -3/Research -3/Garrison (discovered 3 exits: *Res x3) -3/Research -3/Garrison (discovered 3 exits: *Res x3) -2/Research -2/Garrison (discovered 3 exits: *Res x3) -2/Research -2/Garrison -1/Access -1/Command History --------- Turn | Location | Event 14 | -11/Scrapyard | Discovered new exit (range 15) 737 | -11/Scrapyard | Entered Materials 738 | -10/Materials | Build established: Mutant 836 | -10/Materials | Discovered new exit (range 8) 1048 | -10/Materials | Discovered new exit (range 16) 1484 | -10/Materials | Discovered new exit (range 12) 1657 | -10/Materials | Discovered new exit (range 16) 1979 | -10/Materials | Discovered new exit (range 16) 2095 | -10/Materials | Identified exit to Materials 2116 | -10/Materials | Entered Mines 2121 | -10/Mines | Core integrity fell below 50% 2133 | -10/Mines | Learned Materials terminal intel 2143 | -10/Mines | Learned location of Storage (-8) 2206 | -10/Mines | Deemed a non-threat by the Exiles lab entrance 2208 | -10/Mines | Discovered new exit (range 5) 2218 | -10/Mines | Entered Exiles 2258 | -10/Exiles | Met 8R-AWN 2284 | -10/Exiles | Met EX-HEX 2334 | -10/Exiles | Met EX-BIN 2351 | -10/Exiles | Aligned with FarCom system 2353 | -10/Exiles | Given EX-Vault access code 2391 | -10/Exiles | Opened EX-Vault 2408 | -10/Exiles | Found Latent Energy Streamer 2442 | -10/Exiles | Warned to stay clear of 0b10 Research branches 2484 | -10/Exiles | Met EX-DEC 2607 | -10/Exiles | Discovered new exit (range 15) 2628 | -10/Exiles | Left Exiles lab with Latent Energy Streamer 2628 | -10/Exiles | Entered Mines 2646 | -9/Mines | Met a Derelict bent on vengeance 2765 | -9/Mines | Discovered new exit (range 7) 3223 | -9/Mines | Learned location of 1 exit from Materials 3385 | -9/Mines | Learned Materials emergency access door positions 3551 | -9/Mines | Entered Materials 3551 | -8/Materials | Evolved 4 slots: Utility x2, Weapon x2 3552 | -8/Materials | Identified exit to Storage 3553 | -8/Materials | Identified exit to Factory 3555 | -8/Materials | Loaded intel: 12 terminal locations 3847 | -8/Materials | Build established: Hauler-Skirmisher 4079 | -8/Materials | Entered Storage 4170 | -8/Storage | Identified exit to Garrison 4300 | -8/Storage | Garrison activated, responded to threat 5207 | -8/Storage | Build established: Hauler-Mutant 5646 | -8/Storage | Identified exit to Recycling 5670 | -8/Storage | Discovered exit to Factory (range 16) 6064 | -8/Storage | Met 01-MTF 7130 | -8/Storage | Repaired F-cell Engine 7550 | -8/Storage | Entered Garrison 7550 | -8/Garrison | Accompanied by 3 allies (01-MTF) 7558 | -8/Garrison | 01-MTF left 7560 | -8/Garrison | Installed Relay Interface Framework 7735 | -8/Garrison | Triggered checkpoint 7982 | -8/Garrison | Build established: Mutant 8072 | -8/Garrison | Triggered checkpoint 8288 | -8/Garrison | Build established: Tank 8510 | -8/Garrison | Triggered checkpoint 8520 | -8/Garrison | Triggered checkpoint 8551 | -8/Garrison | Destroyed 8 combat bots 8649 | -8/Garrison | Discovered exit to Factory (range 15) 8736 | -8/Garrison | Build established: Mutant 8783 | -8/Garrison | Triggered checkpoint 8890 | -8/Garrison | Discovered exit to Factory (range 14) 9137 | -8/Garrison | Discovered exit to Factory (range 15) 9833 | -8/Garrison | Build established: Scavenger-Assassin 12217 | -8/Garrison | Triggered checkpoint 12516 | -8/Garrison | Build established: Mutant 12933 | -8/Garrison | Entered Factory 12933 | -7/Factory | Evolved 2 slots: Utility x2 12955 | -7/Factory | Build established: Hauler-Mutant 13413 | -7/Factory | Discovered new exit (range 15) 13660 | -7/Factory | Identified exit to Garrison 13660 | -7/Factory | Entered Garrison 13660 | -7/Garrison | Accompanied by 1 ally 13667 | -7/Garrison | Expanded RIF knowledge: Alert ID Control 14023 | -7/Garrison | Triggered checkpoint 14023 | -7/Garrison | Triggered checkpoint 14056 | -7/Garrison | Destroyed 8 combat bots 14215 | -7/Garrison | Build established: Mutant 14337 | -7/Garrison | Triggered checkpoint 14420 | -7/Garrison | Discovered new exit (range 9) 14571 | -7/Garrison | Discovered new exit (range 15) 14688 | -7/Garrison | Discovered new exit (range 10) 15280 | -7/Garrison | Build established: Scavenger-Assassin 16451 | -7/Garrison | Build established: Hauler-Mutant 16914 | -7/Garrison | Entered Factory 16914 | -7/Factory | Accompanied by 1 ally 17231 | -7/Factory | Repaired F-cell Engine 17722 | -7/Factory | Identified exit to Lower Caves 17986 | -7/Factory | Fabricated F-cell Engine (x1) 18415 | -7/Factory | Identified exit to Garrison 18424 | -7/Factory | Entered Garrison 18424 | -7/Garrison | Accompanied by 2 allies 18711 | -7/Garrison | Triggered checkpoint 18748 | -7/Garrison | Triggered checkpoint 19041 | -7/Garrison | Build established: Tank 19053 | -7/Garrison | Discovered new exit (range 10) 19118 | -7/Garrison | Triggered checkpoint 19198 | -7/Garrison | Triggered checkpoint 19299 | -7/Garrison | Discovered new exit (range 13) 19321 | -7/Garrison | Expanded RIF knowledge: Command Fork 19444 | -7/Garrison | Discovered new exit (range 15) 19769 | -7/Garrison | Lost 3 parts (1p2u) 20220 | -7/Garrison | Build established: Hauler-Mutant 20480 | -7/Garrison | Phase Generator disabled 20880 | -7/Garrison | Triggered checkpoint 20915 | -7/Garrison | Garrison Relay disabled 21211 | -7/Garrison | Entered Factory 21211 | -6/Factory | Accompanied by 2 allies 21211 | -6/Factory | Evolved 2 slots: Utility x2 21486 | -6/Factory | Sucked down chute 21486 | -6/Factory | Entered Waste 21486 | -6/Waste | The area was eerily silent 21510 | -6/Waste | 2 allies followed down the chute 21592 | -6/Waste | Discovered new exit (range 11) 21690 | -6/Waste | A Compactor rumbled back to life 21690 | -6/Waste | Crushed by Compactor (1 part destroyed, 1 dropped) 21692 | -6/Waste | Spotted C-40 Crusher 21697 | -6/Waste | Crushed by Compactor (1 part destroyed, 1 dropped) 21720 | -6/Waste | Destroyed C-40 Crusher 21846 | -6/Waste | Build established: Hauler-Skirmisher 22086 | -6/Waste | Found Unknown Protection 22198 | -6/Waste | Identified Damper Plating 22237 | -6/Waste | Found Damper Plating 22243 | -6/Waste | Found Damper Plating 22354 | -6/Waste | Build established: Hauler-Mutant 22808 | -6/Waste | Found Damper Plating 23043 | -6/Waste | Entered Factory 23043 | -6/Factory | Accompanied by 2 allies 23292 | -6/Factory | Fabricated F-cell Engine (x1) 23607 | -6/Factory | Identified exit to Lower Caves 23678 | -6/Factory | Fabricated Micro-nuke Launcher (x1) 23738 | -6/Factory | Build established: Hauler-Skirmisher 23750 | -6/Factory | Fabricated Micro-nuke Launcher (x1) 23850 | -6/Factory | Identified exit to Garrison 23850 | -6/Factory | Entered Garrison 23850 | -6/Garrison | Accompanied by 2 allies 24049 | -6/Garrison | Triggered checkpoint 24118 | -6/Garrison | Garrison Relay disabled 24158 | -6/Garrison | Triggered checkpoint 24851 | -6/Garrison | Build established: Commander-Mutant 24932 | -6/Garrison | Triggered checkpoint 24972 | -6/Garrison | Triggered checkpoint 25148 | -6/Garrison | Triggered checkpoint 25367 | -6/Garrison | Triggered checkpoint 25448 | -6/Garrison | Build established: Tank 25771 | -6/Garrison | Discovered new exit (range 14) 25960 | -6/Garrison | Phase Generator disabled 26133 | -6/Garrison | Triggered checkpoint 26699 | -6/Garrison | Triggered checkpoint 26716 | -6/Garrison | Build established: Mutant 26832 | -6/Garrison | Triggered checkpoint 27022 | -6/Garrison | Build established: Tank 27134 | -6/Garrison | Discovered new exit (range 15) 27195 | -6/Garrison | Expanded RIF knowledge: Patrol Navigation 27427 | -6/Garrison | Discovered new exit (range 9) 27995 | -6/Garrison | Build established: Hauler-Skirmisher 28994 | -6/Garrison | Triggered checkpoint 29217 | -6/Garrison | Entered Factory 29217 | -6/Factory | Accompanied by 5 allies 29328 | -6/Factory | Discovered new exit (range 5) 29480 | -6/Factory | Fabricated Railgun (x2) 29540 | -6/Factory | Fabricated Railgun (x2) 29762 | -6/Factory | Identified exit to Garrison 29762 | -6/Factory | Entered Garrison 29762 | -6/Garrison | Accompanied by 5 allies 29828 | -6/Garrison | Phase Generator disabled 30154 | -6/Garrison | Triggered checkpoint 30432 | -6/Garrison | Build established: Machinist-Mutant 30904 | -6/Garrison | Build established: Machinist-Tank 30939 | -6/Garrison | Triggered checkpoint 31136 | -6/Garrison | Spotted B-75 Beast 31149 | -6/Garrison | Triggered checkpoint 31178 | -6/Garrison | Destroyed B-75 Beast 31243 | -6/Garrison | Discovered new exit (range 8) 31326 | -6/Garrison | Triggered checkpoint 31657 | -6/Garrison | Spotted B-75 Beast 31657 | -6/Garrison | Spotted B-75 Beast 31899 | -6/Garrison | Discovered new exit (range 15) 31939 | -6/Garrison | Expanded RIF knowledge: Robot Detection 32484 | -6/Garrison | Triggered checkpoint 32499 | -6/Garrison | Triggered checkpoint 32694 | -6/Garrison | Triggered checkpoint 32921 | -6/Garrison | Build established: Commander-Tank 32995 | -6/Garrison | Allies destroyed B-75 Beast 33548 | -6/Garrison | Build established: Hauler-Skirmisher 33932 | -6/Garrison | Entered Factory 33932 | -5/Factory | Accompanied by 3 allies 33932 | -5/Factory | Evolved 2 slots: Propulsion x1, Utility x1 34532 | -5/Factory | First assault squad dispatched 34597 | -5/Factory | Identified exit to Garrison 34597 | -5/Factory | Entered Garrison 34650 | -5/Garrison | Triggered checkpoint 34797 | -5/Garrison | Triggered checkpoint 35104 | -5/Garrison | Build established: Machinist-Tank 35299 | -5/Garrison | Triggered checkpoint 35321 | -5/Garrison | Triggered checkpoint 35327 | -5/Garrison | Spotted B-75 Beast 35335 | -5/Garrison | Destroyed B-75 Beast 35356 | -5/Garrison | Destroyed 9 combat bots 35573 | -5/Garrison | Triggered checkpoint 35600 | -5/Garrison | Destroyed 8 combat bots 35696 | -5/Garrison | Discovered new exit (range 15) 35868 | -5/Garrison | Build established: Machinist-Mutant 35878 | -5/Garrison | Discovered new exit (range 15) 36049 | -5/Garrison | Discovered new exit (range 9) 36085 | -5/Garrison | Expanded RIF knowledge: Structural Interface 36948 | -5/Garrison | Triggered checkpoint 37236 | -5/Garrison | Build established: Machinist-Tank 37867 | -5/Garrison | Build established: Hauler-Mutant 38034 | -5/Garrison | Garrison Relay disabled 38073 | -5/Garrison | Entered Factory 38073 | -4/Factory | Evolved 2 slots: Propulsion x1, Utility x1 38227 | -4/Factory | Identified exit to Garrison 38227 | -4/Factory | Entered Garrison 38620 | -4/Garrison | Triggered checkpoint 38890 | -4/Garrison | Discovered new exit (range 2) 38974 | -4/Garrison | Triggered checkpoint 39024 | -4/Garrison | Discovered new exit (range 15) 39038 | -4/Garrison | Build established: Scavenger-Mutant 39061 | -4/Garrison | Expanded RIF knowledge: Signal Jamming 39180 | -4/Garrison | Triggered checkpoint 39375 | -4/Garrison | Discovered new exit (range 13) 39475 | -4/Garrison | Build established: Scavenger-Tank 39585 | -4/Garrison | Triggered checkpoint 39714 | -4/Garrison | Phase Generator disabled 40207 | -4/Garrison | Build established: Hauler-Mutant 40414 | -4/Garrison | Entered Research 40414 | -3/Research | Evolved 2 slots: Power x1, Utility x1 40596 | -3/Research | Identified exit to Garrison 40630 | -3/Research | Entered Garrison 41014 | -3/Garrison | Build established: Scavenger-Tank 42055 | -3/Garrison | Triggered checkpoint 42058 | -3/Garrison | Spotted B-86 Titan 42060 | -3/Garrison | Triggered checkpoint 42073 | -3/Garrison | Destroyed B-86 Titan 42165 | -3/Garrison | Triggered checkpoint 42240 | -3/Garrison | Discovered new exit (range 10) 42243 | -3/Garrison | Build established: Scavenger-Mutant 42428 | -3/Garrison | Triggered checkpoint 42486 | -3/Garrison | Discovered new exit (range 15) 42656 | -3/Garrison | Discovered new exit (range 15) 42691 | -3/Garrison | Expanded RIF knowledge: Command Fork 42708 | -3/Garrison | Build established: Scavenger-Tank 42856 | -3/Garrison | Triggered checkpoint 43267 | -3/Garrison | Found Unknown Device 43516 | -3/Garrison | Identified Antimissile System 43881 | -3/Garrison | Build established: Hauler-Skirmisher 44287 | -3/Garrison | Garrison Relay disabled 44385 | -3/Garrison | Entered Research 44984 | -3/Research | Identified exit to Garrison 44984 | -3/Research | Entered Garrison 45060 | -3/Garrison | Triggered checkpoint 45507 | -3/Garrison | Build established: Scavenger-Tank 45875 | -3/Garrison | Triggered checkpoint 45875 | -3/Garrison | Triggered checkpoint 45876 | -3/Garrison | Spotted B-86 Titan 45880 | -3/Garrison | Triggered checkpoint 45883 | -3/Garrison | Destroyed B-86 Titan 45902 | -3/Garrison | Triggered checkpoint 46006 | -3/Garrison | Discovered new exit (range 14) 46200 | -3/Garrison | Discovered new exit (range 9) 46310 | -3/Garrison | Triggered checkpoint 46335 | -3/Garrison | Triggered checkpoint 46390 | -3/Garrison | Triggered checkpoint 46420 | -3/Garrison | Discovered new exit (range 14) 46453 | -3/Garrison | Expanded RIF knowledge: Autoassimilate 46953 | -3/Garrison | Build established: Commander-Mutant 47448 | -3/Garrison | Build established: Botlord-Mutant 47895 | -3/Garrison | Entered Research 47895 | -2/Research | Accompanied by 8 allies 47895 | -2/Research | Evolved 2 slots: Utility x2 48066 | -2/Research | Central database locked down 48173 | -2/Research | First assault squad dispatched 48241 | -2/Research | Garrison activated, responded to threat 48278 | -2/Research | System corruption reached 10% 48310 | -2/Research | Lost 4 parts (1p1n1u1w) 48334 | -2/Research | Destroyed 8 combat bots 48356 | -2/Research | Identified exit to Garrison 48356 | -2/Research | Entered Garrison 48552 | -2/Garrison | Triggered checkpoint 48557 | -2/Garrison | Triggered checkpoint 48560 | -2/Garrison | Spotted B-90 Cyclops 48569 | -2/Garrison | Destroyed B-90 Cyclops 48590 | -2/Garrison | Destroyed 7 combat bots 48776 | -2/Garrison | Discovered new exit (range 14) 48876 | -2/Garrison | Triggered checkpoint 49103 | -2/Garrison | Discovered new exit (range 13) 49188 | -2/Garrison | Build established: Scavenger-Mutant 49242 | -2/Garrison | Triggered checkpoint 49273 | -2/Garrison | Destroyed 12 combat bots 49686 | -2/Garrison | Triggered checkpoint 49752 | -2/Garrison | Crushed by falling debris 49820 | -2/Garrison | Garrison Relay disabled 49915 | -2/Garrison | Crushed by falling debris 49926 | -2/Garrison | Triggered checkpoint 49946 | -2/Garrison | Lost 3 parts (3u) 49992 | -2/Garrison | Discovered new exit (range 6) 50009 | -2/Garrison | Expanded RIF knowledge: Threat Obfuscation 50016 | -2/Garrison | Entered Research 50186 | -2/Research | Build established: Hauler-Mutant 50203 | -2/Research | Garrison activated, responded to threat 50320 | -2/Research | Identified exit to Garrison 50320 | -2/Research | Entered Garrison 50618 | -2/Garrison | Build established: Scavenger-Tank 50730 | -2/Garrison | Triggered checkpoint 50937 | -2/Garrison | Triggered checkpoint 51030 | -2/Garrison | Triggered checkpoint 51044 | -2/Garrison | Spotted B-90 Cyclops 51049 | -2/Garrison | Destroyed B-90 Cyclops 51096 | -2/Garrison | Build established: Scavenger-Mutant 51361 | -2/Garrison | Triggered checkpoint 51484 | -2/Garrison | Discovered new exit (range 12) 51514 | -2/Garrison | Expanded RIF knowledge: Watcher Feeds 52236 | -2/Garrison | Entered Access 52236 | -1/Access | Evolved 2 slots: Utility x2 53009 | -1/Access | Garrison activated, responded to threat 53870 | -1/Access | Spotted B-99 Colossus 53947 | -1/Access | Destroyed B-99 Colossus 53977 | -1/Access | Lost 16 parts (2p2n6u6w) 54020 | -1/Access | Found Unknown Protection 54179 | -1/Access | Discovered new exit (range 8) 54192 | -1/Access | Entered Command 54309 | -1/Command | Build established: Scavenger-Tank 54555 | -1/Command | Spotted M Guard 54580 | -1/Command | Spotted Combat Programmer 54584 | -1/Command | Spotted Combat Programmer 54612 | -1/Command | Identified Hvy. Insulated Plating 54637 | -1/Command | System corruption reached 10% 54699 | -1/Command | Spotted M Guard 54710 | -1/Command | System corruption reached 30% 54752 | -1/Command | Destroyed Combat Programmer 54771 | -1/Command | Destroyed Combat Programmer 54783 | -1/Command | Lost 18 parts (1p3n10u4w) 54948 | -1/Command | Destroyed M Guard 55120 | -1/Command | Destroyed M Guard 55120 | -1/Command | All MAIN.C guards destroyed 55351 | -1/Command | Found Prototype Reactor 55355 | -1/Command | Found Prototype Protection 55364 | -1/Command | Found Prototype Processor 55364 | -1/Command | Identified Exp. Targeting Computer 55378 | -1/Command | Found Prototype Protection 55424 | -1/Command | Build established: Scavenger-Mutant 55628 | -1/Command | Met MAIN.C 55636 | -1/Command | 0b10 Conduit disabled 55665 | -1/Command | Identified Hvy. Regenerative Plating (x2) 55707 | -1/Command | Lost 4 parts (1n1u2w) 55709 | -1/Command | Destroyed MAIN.C Shell 55711 | -1/Command | MAIN.C activated Command garrisons 55718 | -1/Command | Identified Zero-point Reactor 55737 | -1/Command | Core integrity fell below 50% 55776 | -1/Command | Released all parts (15) 55782 | -1/Command | Core integrity fell below 20% 55786 | -1/Command | Destroyed by S-43 Plague with Heavy Machine Gun Last Messages --------------- 55776_ Released Adv. Target Analyzer. 55776_ Released Hcp. Storage Unit. 55776_ Released Lrg. Storage Unit. 55776_ Released Adv. Targeting Computer. 55776_ Released Energy Well. 55776_ Released Lyr. Medium Armor Plating. 55776_ Released Adv. Force Field. 55776_ Released Relay Coupler [Swarmer]. 55776_ Released Segregator. 55776_ Released Coil Gun. 55780_ System corrupted: Energy discharge (-16). 55781_ Acquired 28 matter. 55781_ C-30 ARC bursts open, deploying its payload. 55781_ S-43 Plague unfolds itself. 55781_ Knocked back. 55782_ Acquired Xenon Bombardment Thruster. 55784_ Acquired 105 matter. 55785_ Acquired 3 matter. 55786_ S-43 Plague destroyed. [Achievement: 50k Club] Map ----- +----------------------------------------------------+ | ?????????????????????????????????????????????????? | | ?????????????????????????????????????????????????? | | ?????????????????????????????????????????????????? | | ?????????????????????????????????????????????????? | | ?????????????????????????????????????????????????? | | ?????????????????????????????????????????????????? | | ?????????????????????????????????????????????????? | | ?????????????????????????????????????????????????? | | ?????????????????????????????????????????????????? | | ?????????????????????????????????????????????????? | | ?????????????????????????????????????????????????? | | ?????????????????????????????????????????????????? | | ?????????????????????????????????????????????????? | | ?????????????????????????????????????????????????? | | ?????????????????????????????????????????????????? | | ?????????????????????????????????????????????????? | | ?????????????????????????????????????????????????? | | ?????????????????????????????????????????????????? | | ?????????????????????????????????????????????????? | | ?????????????????????????????????????????????????? | | ?????????????????????????????????????????????????? | | ??????#################??????????????????????????? | | ?????""" """ #??????????????????????????? | | ?????? " #??????????????????????????? | | ????"" #######################????? | | ????"""""" s@= #????? | | ?????" * ss%%= #????? | | ?????" ssMs!! p #????? | | ??" ?""" /[![ ######;############ !#????? | | ? " """" [!![! #?????##??????????# !b#????? | | ? " " !!*!* #?????????????????#!|*##?### | | ? " */!![ #?????????????????#!%!%#?#! | | ????"""" !!!![ #?????????????????#+++####!% | | ?"" #?????????????????#**!*!! | | # "" ""#?????????????????#!==!% | | # " " " #?????????????????# ! % | | # " " " " #?????????????????# ! | | | " " " " " #?????????????????# ! | | ? "" " " """" #?????????????????# ### | | ? " " " " #?????????????????######?# | | ??? ""??""?""" " #????????????????????????### | | ????????????? """"""""#??????????????????????????? | | ????????????? " " ????????????????????????????? | | ?????????????######??????????????????????????????? | | ?????????????????????????????????????????????????? | | ?????????????????????????????????????????????????? | | ?????????????????????????????????????????????????? | | ?????????????????????????????????????????????????? | | ?????????????????????????????????????????????????? | | ?????????????????????????????????????????????????? | +----------------------------------------------------+ Best States ------------- Heat Dissipation 121 Coolant Potential 100 Energy Generation 45 Energy Capacity 2050 Matter Stores 550 Matter Capacity 800 Sight Range 16 Robot Scan Range 20 Terrain Scan Range 16 Terrain Scan Density 210 Armor Coverage 3600 Resistance: KI 20 Resistance: TH 10 Resistance: EX 50 Resistance: EM 90 Utility Shielding 66 Phase Shifting 15 Evasion (%) 55 Targeting Accuracy 20 Target Analysis 8 Recoil Reduction 4 Matter Filtering 30 Relay Coupler Types 53 Relay Coupler Value 2 Item Schematics ----------------- Arm. Treads | -8/Storage | Hacked F-cell Engine | -7/Factory | Scanalyzed Micro-nuke Launcher | -6/Factory | Scanalyzed Imp. Shield Generator | -6/Factory | Scanalyzed Smartbomb Launcher | -2/Research | Hacked Robot Schematics ------------------ None Fabricated ------------ F-cell Engine | x1 | -7/Factory F-cell Engine | x1 | -6/Factory Micro-nuke Launcher | x1 | -6/Factory Micro-nuke Launcher | x1 | -6/Factory Railgun | x2 | -6/Factory | Preloaded Railgun | x2 | -6/Factory | Preloaded Alien Tech Used ----------------- None Achievements -------------- 50k Club Corridor Of Doom Quick And Dirty Challenges ------------ None Game ------ Seed LongswordMatterInitializer Manual? 0 Play Time 09:14:47 Cumulative 93.9 hours Start 2021.11.30 @ 19:44:45 End 2021.12.01 @ 17:29:54 Sessions 6 Manual Loads 0 Difficulty Rogue Special Mode None Game No. 43 Rogue 43 Adventurer 0 Explorer 0 Win Type - Total 1 Types 1/0/0/0/0/0/0/0/0 Lore% 34 Gallery% 53 Achievement% 44 Wizard Run 0 Options --------- ASCII 0 Keyboard 0 Movement Arrows Keybinds 0 Fullscreen 0 Font 28/SmallcapsGlow Map View 72x54 Tactical HUD 1 Map Filters NONE Filters NONE Steam 1 RUN: 893fad8e-0ab6-486c-87bc-2b218bbe4306